fUST/lending_fUST_20250505
["ID","MTS","AMOUNT","RATE_DAILY","PERIOD"]
[359958762,1746448238840,-1356.4260866,0.00035516,2]
[359958763,1746448238850,-1217.48168177,0.00035606,3]
[359958764,1746448238860,-353.31,0.00035606,3]
[359958765,1746448238869,-176.66,0.00035606,3]
[359958766,1746448238879,-530.0,0.00035606,3]
[359958767,1746448238889,-630.7279445,0.00035615,7]
[359958768,1746448238898,-378.95438742,0.00035615,7]
[359958769,1746448238908,-400.0,0.00035615,3]
[359958770,1746448238919,-244.62846713,0.00035616,14]
[359958771,1746448238929,-400.0,0.00035616,14]
[359958772,1746448238938,-400.0,0.00035616,14]
[359958773,1746448238948,-400.0,0.00035616,14]
[359958774,1746448238957,-400.0,0.00035616,14]
[359958775,1746448238966,-400.0,0.00035616,14]
[359958776,1746448238976,-400.0,0.00035616,14]
[359958777,1746448238985,-400.0,0.00035616,14]
[359958778,1746448238994,-500.0,0.00035616,2]
[359958779,1746448239003,-400.0,0.00035616,14]
[359958780,1746448239014,-525.46364915,0.00035616,14]
[359958781,1746448239023,-400.0,0.00035616,14]
[359958782,1746448239033,-400.0,0.00035616,14]
[359958783,1746448239042,-400.0,0.00035616,14]
[359958784,1746448239052,-400.0,0.00035616,14]
[359958785,1746448239061,-400.0,0.00035616,14]
[359958786,1746448239070,-402.82879292,0.00035616,14]
[359958787,1746448239079,-400.0,0.00035616,14]
[359958788,1746448239088,-400.0,0.00035616,14]
[359958789,1746448239097,-402.60581353,0.00035616,14]
[359958790,1746448239106,-400.0,0.00035616,14]
[359958791,1746448239115,-546.66,0.00035616,14]
[359958792,1746448239124,-400.0,0.00035616,14]
[359958793,1746448239133,-400.0,0.00035616,14]
[359958794,1746448239142,-400.0,0.00035616,14]
[359958795,1746448239151,-400.0,0.00035616,14]
[359958796,1746448239160,-400.0,0.00035616,14]
[359958797,1746448239169,-400.0,0.00035616,14]
[359958798,1746448239178,-400.0,0.00035616,14]
[359958799,1746448239191,-203.46924777,0.00035616,14]
[359958800,1746448239200,-419.1014355,0.00035616,14]
[359958801,1746448239210,-400.0,0.00035616,14]
[359958802,1746448239219,-400.0,0.00035616,14]
[359958803,1746448239228,-264.2031797,0.00035616,14]
[359958804,1746448239238,-633.65,0.00035616,14]
[359958805,1746448239247,-400.0,0.00035616,14]
[359958806,1746448239257,-400.0,0.00035616,14]
[359958807,1746448239267,-404.92196697,0.00035616,14]
[359958808,1746448239277,-400.0,0.00035616,14]
[359958809,1746448239286,-400.0,0.00035616,14]
[359958810,1746448239296,-223.34700228,0.00035616,14]
[359958811,1746448239306,-503.42947513,0.00035616,14]
[359958812,1746448239315,-400.0,0.00035616,14]
[359958813,1746448239325,-185.85423252,0.00035616,14]
[359958814,1746448239335,-400.0,0.00035616,14]
[359958815,1746448239345,-501.75345957,0.00035616,14]
[359958816,1746448239355,-400.0,0.00035616,14]
[359958817,1746448239364,-400.0,0.00035616,14]
[359958818,1746448239373,-400.0,0.00035616,14]
[359958819,1746448239383,-400.0,0.00035616,14]
[359958820,1746448239393,-400.0,0.00035616,14]
[359958821,1746448239402,-400.0,0.00035616,14]
[359958822,1746448239412,-335.06217758,0.00035616,14]
[359958823,1746448239422,-400.0,0.00035616,14]
[359958824,1746448239432,-400.0,0.00035616,14]
[359958825,1746448239442,-400.0,0.00035616,14]
[359958826,1746448239451,-274.43157577,0.00035616,14]
[359958827,1746448239460,-400.0,0.00035616,14]
[359958829,1746448239470,-400.0,0.00035616,14]
[359958831,1746448239480,-400.0,0.00035616,14]
[359958833,1746448239490,-400.0,0.00035616,14]
[359958835,1746448239499,-400.0,0.00035616,14]
[359958836,1746448239509,-401.72888561,0.00035616,14]
[359958837,1746448239519,-500.0,0.00035616,14]
[359958838,1746448239529,-400.0,0.00035616,14]
[359958839,1746448239538,-308.35877932,0.00035616,14]
[359958840,1746448239547,-400.0,0.00035616,14]
[359958841,1746448239557,-400.0,0.00035616,14]
[359958842,1746448239566,-400.0,0.00035616,14]
[359958843,1746448239575,-400.0,0.00035616,14]
[359958844,1746448239584,-400.0,0.00035616,14]
[359958845,1746448239594,-400.0,0.00035616,14]
[359958846,1746448239604,-208.01283144,0.00035616,14]
[359958847,1746448239614,-400.0,0.00035616,14]
[359958848,1746448239760,-400.0,0.00035616,14]
[359958849,1746448239770,-503.71660098,0.00035616,14]
[359958850,1746448239780,-400.0,0.00035616,14]
[359958851,1746448239790,-400.0,0.00035616,14]
[359958852,1746448239800,-400.0,0.00035616,14]
[359958853,1746448239809,-400.0,0.00035616,14]
[359958854,1746448239819,-401.59942825,0.00035616,14]
[359958855,1746448239829,-532.96533643,0.00035616,14]
[359958856,1746448239839,-400.0,0.00035616,14]
[359958857,1746448239849,-400.0,0.00035616,14]
[359958858,1746448239859,-400.0,0.00035616,14]
[359958859,1746448239868,-400.0,0.00035616,14]
[359958860,1746448239877,-404.21445751,0.00035616,14]
[359958861,1746448239887,-400.0,0.00035616,14]
[359958862,1746448239896,-400.0,0.00035616,14]
[359958863,1746448239905,-207.49507218,0.00035616,14]
[359958864,1746448239915,-407.02643022,0.00035616,14]
[359958865,1746448239925,-400.0,0.00035616,14]
[359958866,1746448239935,-505.21184569,0.00035616,14]
[359958867,1746448239945,-542.23,0.00035616,14]
[359958868,1746448239954,-400.0,0.00035616,14]
[359958869,1746448239964,-400.0,0.00035616,14]
[359958870,1746448239974,-400.0,0.00035616,14]
[359958871,1746448239984,-400.0,0.00035616,14]
[359958872,1746448239993,-400.0,0.00035616,14]
[359958873,1746448240003,-400.0,0.00035616,14]
[359958874,1746448240012,-400.0,0.00035616,14]
[359958875,1746448240022,-400.0,0.00035616,14]
[359958876,1746448240031,-404.14493648,0.00035616,14]
[359958877,1746448240041,-400.0,0.00035616,14]
[359958878,1746448240050,-400.80180131,0.00035616,14]
[359958879,1746448240060,-400.0,0.00035616,14]
[359958880,1746448240069,-400.0,0.00035616,14]
[359958881,1746448240078,-454.7,0.00035616,14]
[359958882,1746448240087,-400.0,0.00035616,14]
[359958883,1746448240096,-400.0,0.00035616,14]
[359958884,1746448240105,-400.0,0.00035616,14]
[359958885,1746448240115,-400.0,0.00035616,14]
[359958886,1746448240125,-400.0,0.00035616,14]
[359958887,1746448240135,-400.0,0.00035616,14]
[359958888,1746448240144,-401.35149075,0.00035616,14]
[359958889,1746448240154,-400.0,0.00035616,14]
[359958890,1746448240164,-400.0,0.00035616,14]
[359958891,1746448240173,-400.0,0.00035616,14]
[359958892,1746448240183,-404.12578191,0.00035616,14]
[359958893,1746448240195,-400.0,0.00035616,14]
[359958894,1746448240205,-400.0,0.00035616,14]
[359958895,1746448240214,-400.0,0.00035616,14]
[359958896,1746448240224,-400.0,0.00035616,14]
[359958897,1746448240233,-413.64323504,0.00035616,14]
[359958898,1746448240242,-402.38972112,0.00035616,14]
[359958899,1746448240251,-400.0,0.00035616,14]
[359958900,1746448240260,-400.0,0.00035616,14]
[359958901,1746448240270,-400.0,0.00035616,14]
[359958902,1746448240279,-400.0,0.00035616,14]
[359958903,1746448240288,-405.67866515,0.00035616,14]
[359958904,1746448240297,-400.0,0.00035616,14]
[359958905,1746448240307,-415.82494353,0.00035616,14]
[359958906,1746448240316,-400.0,0.00035616,14]
[359958907,1746448240326,-230.61111892,0.00035616,14]
[359958908,1746448240335,-403.65009973,0.00035616,14]
[359958911,1746448240345,-400.0,0.00035616,14]
[359958913,1746448240354,-400.0,0.00035616,14]
[359958914,1746448240365,-500.0,0.00035616,14]
[359958915,1746448240374,-496.59306732,0.00035616,14]
[359958916,1746448240384,-401.68698194,0.00035616,14]
[359958917,1746448240393,-463.23,0.00035616,14]
[359958918,1746448240403,-407.25074256,0.00035616,14]
[359958919,1746448240412,-402.66886466,0.00035616,14]
[359958920,1746448240422,-400.0,0.00035616,14]
[359958922,1746448240431,-2417.77,0.00035616,14]
[359958923,1746448240441,-400.0,0.00035616,14]
[359958924,1746448240452,-400.0,0.00035616,14]
[359958925,1746448240462,-1783.1,0.00035616,14]
[359958926,1746448240471,-411.71845417,0.00035616,14]
[359958927,1746448240481,-700.6,0.00035616,14]
[359958928,1746448240490,-400.0,0.00035616,14]
[359958929,1746448240500,-400.0,0.00035616,2]
[359958930,1746448240509,-400.0,0.00035616,14]
[359958931,1746448240518,-400.0,0.00035616,14]
[359958932,1746448240527,-620.11,0.00035616,14]
[359958933,1746448240539,-312.22124922,0.00035616,2]
[359958934,1746448240549,-400.0,0.00035616,14]
[359958935,1746448240558,-504.83,0.00035616,14]
[359958936,1746448240567,-400.0,0.00035616,14]
[359958937,1746448240576,-400.0,0.00035616,14]
[359958938,1746448240586,-400.0,0.00035616,14]
[359958939,1746448240596,-501.67255527,0.00035616,14]
[359958940,1746448240606,-2998.69,0.00035616,14]
[359958942,1746448240615,-400.0,0.00035616,14]
[359958944,1746448240625,-400.0,0.00035616,14]
[359958946,1746448240634,-400.0,0.00035616,14]
[359958948,1746448240643,-400.0,0.00035616,14]
[359958950,1746448240653,-400.0,0.00035616,14]
[359958952,1746448240662,-400.0,0.00035616,14]
[359958954,1746448240672,-510.43090287,0.00035616,14]
[359958956,1746448240681,-400.0,0.00035616,14]
[359958958,1746448240690,-400.0,0.00035616,14]
[359958960,1746448240700,-400.0,0.00035616,14]
[359958962,1746448240709,-400.0,0.00035616,14]
[359958964,1746448240718,-401.20839638,0.00035616,14]
[359958966,1746448240727,-400.0,0.00035616,14]
[359958968,1746448240737,-400.0,0.00035616,14]
[359958970,1746448240746,-400.0,0.00035616,14]
[359958972,1746448240755,-400.0,0.00035616,14]
[359958974,1746448240765,-400.0,0.00035616,14]
[359958976,1746448240774,-400.0,0.00035616,14]
[359958978,1746448240784,-400.0,0.00035616,14]
[359958980,1746448240793,-419.1,0.00035616,14]
[359958982,1746448240803,-400.0,0.00035616,14]
[359958984,1746448240813,-401.95818055,0.00035616,14]
[359958986,1746448240822,-599.21,0.00035616,14]
[359958988,1746448240832,-400.0,0.00035616,14]
[359958990,1746448240841,-813.53,0.00035616,14]
[359958992,1746448240851,-517.98,0.00035616,14]
[359958994,1746448240860,-400.0,0.00035616,14]
[359958996,1746448240870,-273.20431788,0.00035616,14]
[359958998,1746448240879,-400.0,0.00035616,2]
[359959000,1746448240889,-400.0,0.00035616,14]
[359959002,1746448240898,-400.0,0.00035616,14]
[359959004,1746448240907,-400.0,0.00035616,14]
[359959006,1746448240916,-400.0,0.00035616,14]
[359959008,1746448240926,-400.0,0.00035616,14]
[359959010,1746448240935,-308.61601036,0.00035616,14]
[359959012,1746448240944,-1166.14,0.00035616,14]
[359959014,1746448240954,-225.24854917,0.00035616,14]
[359959016,1746448240965,-400.0,0.00035616,14]
[359959018,1746448240975,-400.0,0.00035616,14]
[359959020,1746448240984,-400.0,0.00035616,14]
[359959022,1746448240994,-400.0,0.00035616,14]
[359959024,1746448241004,-1007.67220858,0.00035616,5]
[359959027,1746448241014,-400.0,0.00035616,14]
[359959029,1746448241023,-400.0,0.00035616,14]
[359959031,1746448241033,-400.0,0.00035616,14]
[359959033,1746448241043,-400.0,0.00035616,14]
[359959035,1746448241052,-400.0,0.00035616,14]
[359959037,1746448241062,-500.0,0.00035616,14]
[359959039,1746448241071,-500.0,0.00035616,14]
[359959041,1746448241081,-500.0,0.00035616,14]
[359959043,1746448241091,-1500.0,0.00035616,30]
[359959045,1746448241100,-500.0,0.00035616,14]
[359959047,1746448241109,-500.0,0.00035616,14]
[359959049,1746448241118,-500.0,0.00035616,14]
[359959051,1746448241128,-500.0,0.00035616,14]
[359959053,1746448241137,-400.0,0.00035616,14]
[359959054,1746448241146,-500.0,0.00035616,14]
[359959057,1746448241156,-500.0,0.00035616,14]
[359959059,1746448241166,-500.0,0.00035616,14]
[359959061,1746448241176,-500.0,0.00035616,14]
[359959063,1746448241188,-500.0,0.00035616,14]
[359959064,1746448241197,-400.0,0.00035616,14]
[359959066,1746448241207,-532.91740971,0.00035616,14]
[359959069,1746448241216,-400.0,0.00035616,14]
[359959070,1746448241227,-408.94929942,0.00035616,14]
[359959072,1746448241238,-533.06,0.00035616,14]
[359959075,1746448241248,-400.0,0.00035616,14]
[359959077,1746448241259,-400.0,0.00035616,14]
[359959079,1746448241269,-666.36,0.00035616,14]
[359959081,1746448241279,-400.0,0.00035616,14]
[359959083,1746448241289,-400.0,0.00035616,14]
[359959085,1746448241298,-400.0,0.00035616,14]
[359959087,1746448241307,-742.49,0.00035616,14]
[359959089,1746448241317,-400.0,0.00035616,14]
[359959091,1746448241326,-400.0,0.00035616,14]
[359959093,1746448241336,-400.0,0.00035616,14]
[359959095,1746448241346,-400.0,0.00035616,14]
[359959097,1746448241356,-400.0,0.00035616,14]
[359959099,1746448241365,-400.0,0.00035616,14]
[359959101,1746448241374,-766.37,0.00035616,14]
[359959103,1746448241383,-400.0,0.00035616,14]
[359959105,1746448241393,-411.26481086,0.00035616,14]
[359959107,1746448241402,-400.0,0.00035616,14]
[359959109,1746448241412,-400.0,0.00035616,14]
[359959111,1746448241422,-400.0,0.00035616,14]
[359959113,1746448241431,-400.0,0.00035616,14]
[359959115,1746448241441,-400.0,0.00035616,14]
[359959117,1746448241450,-401.02259003,0.00035616,14]
[359959119,1746448241460,-400.0,0.00035616,14]
[359959121,1746448241469,-400.0,0.00035616,14]
[359959123,1746448241478,-901.41,0.00035616,14]
[359959125,1746448241487,-400.0,0.00035616,14]
[359959127,1746448241497,-400.0,0.00035616,14]
[359959129,1746448241506,-400.0,0.00035616,14]
[359959131,1746448241516,-400.0,0.00035616,14]
[359959133,1746448241525,-400.0,0.00035616,14]
[359959135,1746448241534,-401.53046715,0.00035616,14]
[359959137,1746448241544,-400.0,0.00035616,14]
[359959139,1746448241553,-400.0,0.00035616,14]
[359959141,1746448241563,-250.09085467,0.00035616,14]
[359959143,1746448241575,-400.0,0.00035616,14]
[359959145,1746448241584,-223.66461557,0.00035616,14]
[359959153,1746448241648,-176.33538443,0.00035616,14]
[359959155,1746448241657,-400.0,0.00035616,14]
[359959157,1746448241667,-400.0,0.00035616,14]
[359959159,1746448241676,-400.0,0.00035616,14]
[359959161,1746448241685,-2627.2,0.00035616,2]
[359959163,1746448241694,-798.33,0.00035616,14]
[359959165,1746448241704,-528.04361022,0.00035616,14]
[359959167,1746448241714,-400.0,0.00035616,14]
[359959169,1746448241723,-400.0,0.00035616,14]
[359959171,1746448241732,-400.0,0.00035616,14]
[359959173,1746448241741,-400.0,0.00035616,14]
[359959175,1746448241750,-400.0,0.00035616,14]
[359959177,1746448241760,-502.85992074,0.00035616,14]
[359959179,1746448241769,-785.36,0.00035616,14]
[359959181,1746448241778,-400.0,0.00035616,14]
[359959183,1746448241788,-302.94783816,0.00035616,14]
[359959185,1746448241797,-400.0,0.00035616,14]
[359959187,1746448241806,-400.0,0.00035616,14]
[359959189,1746448241816,-504.59484258,0.00035616,14]
[359959191,1746448241825,-410.59,0.00035616,14]
[359959193,1746448241834,-400.0,0.00035616,14]
[359959195,1746448241843,-400.0,0.00035616,14]
[359959197,1746448241852,-688.34,0.00035616,14]
[359959199,1746448241861,-500.0,0.00035616,14]
[359959201,1746448241870,-500.0,0.00035616,14]
[359959203,1746448241880,-500.0,0.00035616,14]
[359959205,1746448241889,-500.0,0.00035616,14]
[359959207,1746448241898,-500.0,0.00035616,14]
[359959209,1746448241907,-500.0,0.00035616,14]
[359959211,1746448241916,-500.0,0.00035616,14]
[359959213,1746448241926,-500.0,0.00035616,14]
[359959215,1746448241935,-500.0,0.00035616,14]
[359959217,1746448241944,-500.0,0.00035616,14]
[359959219,1746448241953,-401.20908056,0.00035616,14]
[359959221,1746448241962,-400.0,0.00035616,14]
[359959223,1746448241971,-400.0,0.00035616,14]
[359959225,1746448241980,-400.0,0.00035616,14]
[359959227,1746448241989,-442.28,0.00035616,14]
[359959229,1746448241998,-411.29705718,0.00035616,14]
[359959231,1746448242008,-400.0,0.00035616,14]
[359959233,1746448242018,-1430.54,0.00035616,14]
[359959235,1746448242028,-808.21,0.00035616,14]
[359959237,1746448242037,-744.48,0.00035616,14]
[359959239,1746448242047,-417.269629,0.00035616,14]
[359959241,1746448242056,-400.0,0.00035616,14]
[359959243,1746448242065,-400.0,0.00035616,14]
[359959245,1746448242074,-1502.04,0.00035616,14]
[359959247,1746448242083,-400.0,0.00035616,14]
[359959249,1746448242092,-786.55,0.00035616,14]
[359959251,1746448242101,-509.16735731,0.00035616,14]
[359959253,1746448242110,-490.54,0.00035616,14]
[359959255,1746448242119,-400.0,0.00035616,14]
[359959257,1746448242128,-1298.36,0.00035616,14]
[359959259,1746448242137,-400.0,0.00035616,14]
[359959261,1746448242146,-400.0,0.00035616,14]
[359959263,1746448242155,-400.0,0.00035616,14]
[359959265,1746448242164,-400.0,0.00035616,14]
[359959278,1746448242282,-400.0,0.00035616,14]
[359959280,1746448242292,-400.0,0.00035616,14]
[359959282,1746448242301,-400.0,0.00035616,14]
[359959284,1746448242309,-400.0,0.00035616,14]
[359959286,1746448242319,-506.20906952,0.00035616,14]
[359959288,1746448242328,-761.46,0.00035616,14]
[359959290,1746448242337,-504.4718993,0.00035616,14]
[359959292,1746448242346,-400.0,0.00035616,14]
[359959294,1746448242356,-400.0,0.00035616,14]
[359959296,1746448242365,-460.03743445,0.00035616,14]
[359959298,1746448242374,-400.0,0.00035616,14]
[359959301,1746448242385,-507.28154884,0.00035616,14]
[359959303,1746448242394,-477.41008178,0.00035616,14]
[359959305,1746448242403,-230.72638221,0.00035616,14]
[359959307,1746448242411,-400.0,0.00035616,14]
[359959309,1746448242420,-500.0,0.00035616,14]
[359959311,1746448242429,-400.0,0.00035616,14]
[359959313,1746448242439,-400.0,0.00035616,14]
[359959315,1746448242448,-861.42,0.00035616,14]
[359959317,1746448242457,-400.0,0.00035616,14]
[359959319,1746448242467,-400.0,0.00035616,14]
[359959321,1746448242477,-400.0,0.00035616,14]
[359959323,1746448242485,-400.0,0.00035616,14]
[359959325,1746448242494,-400.0,0.00035616,14]
[359959327,1746448242503,-400.0,0.00035616,14]
[359959329,1746448242512,-400.0,0.00035616,14]
[359959331,1746448242521,-501.38841628,0.00035616,14]
[359959333,1746448242530,-400.0,0.00035616,14]
[359959335,1746448242539,-400.0,0.00035616,14]
[359959337,1746448242548,-400.0,0.00035616,14]
[359959339,1746448242557,-400.0,0.00035616,14]
[359959341,1746448242566,-500.0,0.00035616,14]
[359959343,1746448242575,-500.0,0.00035616,14]
[359959345,1746448242585,-875.83,0.00035616,14]
[359959347,1746448242594,-400.0,0.00035616,14]
[359959349,1746448242603,-501.31043889,0.00035616,14]
[359959351,1746448242611,-400.0,0.00035616,14]
[359959353,1746448242621,-506.18746173,0.00035616,14]
[359959355,1746448242630,-400.0,0.00035616,14]
[359959357,1746448242639,-1976.55,0.00035616,14]
[359959359,1746448242648,-400.0,0.00035616,14]
[359959361,1746448242657,-710.62,0.00035616,14]
[359959362,1746448242666,-400.80486796,0.00035616,14]
[359959365,1746448242676,-429.69,0.00035616,14]
[359959367,1746448242685,-1547.07,0.00035616,14]
[359959369,1746448242694,-400.24305523,0.00035616,2]
[359959371,1746448242704,-400.0,0.00035616,14]
[359959373,1746448242713,-507.79,0.00035616,14]
[359959375,1746448242722,-400.0,0.00035616,14]
[359959377,1746448242732,-494.58,0.00035616,14]
[359959378,1746448242741,-214.4004236,0.00035616,14]
[359959379,1746448242750,-400.0,0.00035616,14]
[359959380,1746448242760,-400.0,0.00035616,14]
[359959382,1746448242769,-400.0,0.00035616,14]
[359959383,1746448242778,-400.0,0.00035616,14]
[359959384,1746448242787,-400.0,0.00035616,14]
[359959385,1746448242796,-400.0,0.00035616,14]
[359959386,1746448242806,-403.96761852,0.00035616,14]
[359959387,1746448242815,-400.0,0.00035616,14]
[359959388,1746448242824,-434.9,0.00035616,14]
[359959389,1746448242834,-400.0,0.00035616,14]
[359959390,1746448242843,-400.0,0.00035616,14]
[359959391,1746448242852,-400.0,0.00035616,14]
[359959392,1746448242862,-400.0,0.00035616,14]
[359959393,1746448242871,-423.48940489,0.00035616,14]
[359959394,1746448242881,-405.32129881,0.00035616,14]
[359959395,1746448242890,-400.0,0.00035616,14]
[359959396,1746448242900,-400.0,0.00035616,14]
[359959397,1746448242910,-400.0,0.00035616,14]
[359959398,1746448242919,-403.18437504,0.00035616,14]
[359959399,1746448242930,-400.0,0.00035616,14]
[359959400,1746448242939,-400.0,0.00035616,14]
[359959401,1746448242949,-400.0,0.00035616,14]
[359959402,1746448242958,-510.76600014,0.00035616,14]
[359959403,1746448242967,-400.0,0.00035616,14]
[359959404,1746448242976,-400.0,0.00035616,14]
[359959405,1746448242986,-400.0,0.00035616,14]
[359959406,1746448242996,-400.0,0.00035616,14]
[359959407,1746448243005,-400.0,0.00035616,14]
[359959408,1746448243016,-400.0,0.00035616,14]
[359959409,1746448243026,-400.0,0.00035616,14]
[359959410,1746448243035,-400.0,0.00035616,14]
[359959411,1746448243045,-2494.33,0.00035616,14]
[359959412,1746448243056,-2126.87,0.00035616,14]
[359959414,1746448243067,-400.0,0.00035616,14]
[359959416,1746448243077,-400.0,0.00035616,14]
[359959418,1746448243087,-400.0,0.00035616,14]
[359959420,1746448243096,-400.0,0.00035616,14]
[359959421,1746448243106,-426.69,0.00035616,14]
[359959422,1746448243116,-400.0,0.00035616,14]
[359959424,1746448243125,-400.0,0.00035616,14]
[359959425,1746448243135,-403.07855009,0.00035616,14]
[359959426,1746448243144,-400.0,0.00035616,14]
[359959427,1746448243153,-400.0,0.00035616,14]
[359959428,1746448243163,-2991.27,0.00035616,14]
[359959429,1746448243172,-400.0,0.00035616,14]
[359959430,1746448243182,-400.0,0.00035616,14]
[359959431,1746448243194,-407.22957232,0.00035616,14]
[359959432,1746448243204,-400.0,0.00035616,14]
[359959433,1746448243213,-513.05568798,0.00035616,14]
[359959434,1746448243226,-500.91484984,0.00035616,14]
[359959435,1746448243235,-1238.28,0.00035616,14]
[359959436,1746448243244,-797.59,0.00035616,14]
[359959438,1746448243254,-400.0,0.00035616,14]
[359959439,1746448243265,-400.0,0.00035616,14]
[359959440,1746448243275,-504.71898235,0.00035616,14]
[359959441,1746448243284,-400.0,0.00035616,14]
[359959442,1746448243294,-1575.21,0.00035616,14]
[359959443,1746448243303,-409.79425787,0.00035616,14]
[359959444,1746448243313,-400.0,0.00035616,14]
[359959445,1746448243323,-2508.28,0.00035616,14]
[359959446,1746448243333,-400.0,0.00035616,14]
[359959447,1746448243343,-400.0,0.00035616,14]
[359959448,1746448243353,-916.49,0.00035616,14]
[359959449,1746448243363,-400.0,0.00035616,14]
[359959451,1746448243372,-400.0,0.00035616,14]
[359959452,1746448243381,-400.0,0.00035616,14]
[359959453,1746448243390,-2320.81,0.00035616,14]
[359959454,1746448243400,-400.0,0.00035616,14]
[359959455,1746448243409,-518.74,0.00035616,14]
[359959456,1746448243419,-400.0,0.00035616,14]
[359959457,1746448243428,-524.72906108,0.00035616,14]
[359959458,1746448243438,-502.33587833,0.00035616,14]
[359959459,1746448243447,-400.0,0.00035616,14]
[359959460,1746448243456,-400.0,0.00035616,14]
[359959461,1746448243465,-671.46,0.00035616,14]
[359959462,1746448243474,-400.0,0.00035616,14]
[359959464,1746448243483,-400.0,0.00035616,14]
[359959465,1746448243493,-400.0,0.00035616,14]
[359959466,1746448243502,-400.14815938,0.00035616,14]
[359959467,1746448243511,-400.0,0.00035616,14]
[359959468,1746448243521,-400.0,0.00035616,14]
[359959469,1746448243530,-400.0,0.00035616,14]
[359959470,1746448243543,-400.0,0.00035616,14]
[359959471,1746448243553,-1000.0,0.00035616,14]
[359959472,1746448243562,-10554.36,0.00035616,14]
[359959473,1746448243572,-400.0,0.00035616,14]
[359959474,1746448243582,-400.0,0.00035616,14]
[359959475,1746448243592,-1700.28,0.00035616,14]
[359959476,1746448243601,-500.0,0.00035616,14]
[359959477,1746448243610,-400.0,0.00035616,14]
[359959478,1746448243619,-400.0,0.00035616,14]
[359959479,1746448243629,-1400.86,0.00035616,14]
[359959480,1746448243639,-401.37620539,0.00035616,14]
[359959481,1746448243648,-400.0,0.00035616,14]
[359959482,1746448243657,-400.0,0.00035616,14]
[359959483,1746448243667,-400.0,0.00035616,14]
[359959484,1746448243676,-1850.19,0.00035616,14]
[359959485,1746448243686,-400.0,0.00035616,14]
[359959486,1746448243695,-1513.45,0.00035616,14]
[359959487,1746448243704,-200.07702048,0.00035616,14]
[359959488,1746448243714,-400.0,0.00035616,14]
[359959489,1746448243724,-594.65,0.00035616,14]
[359959490,1746448243733,-358.0,0.00035616,14]
[359959491,1746448243742,-400.0,0.00035616,14]
[359959492,1746448243752,-400.0,0.00035616,14]
[359959493,1746448243761,-400.0,0.00035616,14]
[359959494,1746448243771,-400.0,0.00035616,14]
[359959495,1746448243780,-1265.83,0.00035616,14]
[359959496,1746448243789,-400.0,0.00035616,14]
[359959497,1746448243799,-400.0,0.00035616,14]
[359959498,1746448243809,-522.29543877,0.00035616,14]
[359959499,1746448243819,-400.0,0.00035616,14]
[359959500,1746448243828,-400.0,0.00035616,14]
[359959501,1746448243838,-8139.18,0.00035616,14]
[359959502,1746448243847,-400.0,0.00035616,14]
[359959503,1746448243857,-1303.19,0.00035616,14]
[359959504,1746448243867,-500.0,0.00035616,15]
[359959505,1746448243887,-400.0,0.00035616,14]
[359959506,1746448243899,-400.0,0.00035616,14]